[Event "20th Heraklion IT Open 2017"]
[Site "Heraklion"]
[Date "2017.04.18"]
[Round "2"]
[White "Kellner, Nikolaus"]
[Black "Lianeris, Andreas"]
[Result "0-1"]
[ECO "A00"]
[WhiteElo "1700"]
[BlackElo "1543"]
[Annotator "NA"]
[PlyCount "126"]
[EventDate "2017.??.??"]
[EventType "swiss"]
[EventCountry "GRE"]
[SourceTitle "playchess.com"]
[Source "ChessBase"]
[SourceQuality "1"]
[TimeControl "40/5400+30:1800+30"]

1. g4 {[%emt 0:00:00]} d5 {[%emt 0:01:31]} 2. h3 {[%emt 0:00:00]} e5 {[%emt 0:00:50]} 3. Bg2 {[%emt 0:00:00]} Nc6 {[%emt 0:00:39]} 4. Nc3 {[%emt 0:00:00]} Be6 {[%emt 0:00:54]} 5. d3 {[%emt 0:00:00]} h5 {[%emt 0:02:01]} 6. g5 {[%emt 0:00:23]} Nge7 {[%emt 0:01:57]} 7. h4 {[%emt 0:01:26]} Qd7 {[%emt 0:03:33]} 8. Nf3 {[%emt 0:02:50]} O-O-O {[%emt 0:02:17]} 9. Bd2 {[%emt 0:00:05]} Kb8 {[%emt 0:08:55]} 10. a3 {[%emt 0:01:10]} f6 {[%emt 0:05:18]} 11. gxf6 {[%emt 0:00:27]} gxf6 {[%emt 0:00:08]} 12. b4 {[%emt 0:00:07]} Rg8 {[%emt 0:02:30]} 13. Kf1 {[%emt 0:00:22]} Rg6 {[%emt 0:08:35]} 14. b5 {[%emt 0:00:55]} Nd4 {[%emt 0:02:20]} 15. a4 {[%emt 0:00:13]} Nc8 {[%emt 0:02:26]} 16. Ne1 {[%emt 0:15:02]} Qg7 {[%emt 0:27:55]} 17. e3 {[%emt 0:04:08]} Nf5 {[%emt 0:02:40]} 18. e4 {[%emt 0:01:20]} dxe4 {[%emt 0:08:37]} 19. Nxe4 {[%emt 0:00:12]} Be7 {[%emt 0:03:03]} 20. Bh3 {[%emt 0:02:31]} Rg8 {[%emt 0:06:07]} 21. Nf3 {[%emt 0:01:03]} Nd4 {[%emt 0:03:16]} 22. Bxe6 {[%emt 0:02:24]} Nxe6 {[%emt 0:00:24]} 23. Be3 {[%emt 0:01:11]} f5 {[%emt 0:01:21]} 24. Neg5 {[%emt 0:01:21]} f4 {[%emt 0:00:56]} 25. Nxe6 {[%emt 0:01:24]} Rxe6 {[%emt 0:00:07]} 26. Rg1 {[%emt 0:02:08]} Rg6 {[%emt 0:01:03]} 27. Rxg6 {[%emt 0:03:35]} Qxg6 {[%emt 0:00:11]} 28. Bd2 {[%emt 0:03:13]} Bc5 {[%emt 0:02:14]} 29. Ng5 {[%emt 0:00:52]} Be7 {[%emt 0:01:09]} 30. Nf3 {[%emt 0:02:54]} Qg2+ {[%emt 0:01:28]} 31. Ke2 {[%emt 0:00:41]} Rg3 32. Qh1 {[%emt 0:00:16]} Bf6 {[%emt 0:01:28]} 33. Qxg2 {[%emt 0:00:12]} Rxg2 {[%emt 0:00:06]} 34. Bc3 {[%emt 0:00:57]} Rg4 {[%emt 0:00:41]} 35. Rh1 {[%emt 0:00:34]} Ne7 {[%emt 0:00:42]} 36. Bxe5 {[%emt 0:00:19]} Bxe5 {[%emt 0:00:17]} 37. Nxe5 {[%emt 0:00:07]} f3+ {[%emt 0:00:16]} 38. Nxf3 {[%emt 0:01:36]} Rxa4 {[%emt 0:00:19]} 39. c4 {[%emt 0:00:24]} c6 {[%emt 0:01:00]} 40. Nd4 {[%emt 0:00:00]} cxb5 {[%emt 0:00:35]} 41. Nxb5 {[%emt 0:01:50]} Ra2+ {[%emt 0:00:40]} 42. Kf3 {[%emt 0:00:41]} a6 43. Re1 axb5 {[%emt 0:07:54]} 44. Rxe7 {[%emt 0:00:37]} bxc4 {[%emt 0:00:35]} 45. dxc4 {[%emt 0:00:05]} Rc2 {[%emt 0:00:38]} 46. Re4 {[%emt 0:00:39]} Kc7 {[%emt 0:03:43]} 47. Rd4 {[%emt 0:00:10]} Kc6 {[%emt 0:01:19]} 48. Ke3 {[%emt 0:00:34]} Kc5 {[%emt 0:02:14]} 49. f4 {[%emt 0:00:56]} Re2+ {[%emt 0:08:57]} 50. Kxe2 {[%emt 0:03:02]} Kxd4 {[%emt 0:00:15]} 51. Kf3 {[%emt 0:01:52]} Kxc4 {[%emt 0:09:15]} 52. f5 {[%emt 0:01:36]} Kd5 {[%emt 0:00:22]} 53. Kf4 {[%emt 0:00:10]} Kd6 {[%emt 0:00:43]} 54. Kg5 {[%emt 0:00:55]} Ke7 {[%emt 0:00:28]} 55. Kg6 {[%emt 0:01:33]} Kf8 {[%emt 0:00:22]} 56. Kxh5 {[%emt 0:00:52]} b5 {[%emt 0:00:44]} 57. Kg6 {[%emt 0:01:28]} b4 {[%emt 0:00:17]} 58. h5 {[%emt 0:00:04]} b3 {[%emt 0:00:31]} 59. h6 {[%emt 0:00:09]} Kg8 {[%emt 0:00:16]} 60. h7+ {[%emt 0:02:41]} Kh8 {[%emt 0:00:09]} 61. f6 {[%emt 0:00:38]} b2 {[%emt 0:00:07]} 62. f7 {[%emt 0:00:36]} b1=Q+ {[%emt 0:00:06]} 63. Kf6 {[%emt 0:00:43]} Qb4 {[%emt 0:01:28]} 0-1

[Event "20th Heraklion IT Open 2017"]
[Site "Heraklion"]
[Date "2017.04.18"]
[Round "2"]
[White "Solakidis, Panayotis"]
[Black "Dhruv Easwar"]
[Result "0-1"]
[ECO "E10"]
[WhiteElo "1428"]
[BlackElo "1753"]
[Annotator "NA"]
[PlyCount "84"]
[EventDate "2017.??.??"]
[EventType "swiss"]
[EventCountry "GRE"]
[SourceTitle "playchess.com"]
[Source "ChessBase"]
[SourceQuality "1"]
[TimeControl "40/5400+30:1800+30"]

1. d4 {[%emt 0:00:00]} Nf6 {[%emt 0:00:09]} 2. c4 {[%emt 0:00:00]} e6 {[%emt 0:00:23]} 3. Nf3 {[%emt 0:00:00]} d5 {[%emt 0:00:28]} 4. g3 {[%emt 0:00:00]} c5 {[%emt 0:00:48]} 5. cxd5 {[%emt 0:02:59]} Qxd5 {[%emt 0:00:57]} 6. Bg2 {[%emt 0:03:00]} Be7 {[%emt 0:02:10]} 7. O-O {[%emt 0:00:44]} O-O {[%emt 0:01:52]} 8. Nc3 {[%emt 0:00:56]} Qd8 {[%emt 0:00:28]} 9. Bf4 {[%emt 0:05:01]} Nc6 {[%emt 0:00:52]} 10. dxc5 {[%emt 0:02:52]} Bxc5 {[%emt 0:00:29]} 11. Ne5 {[%emt 0:01:14]} Nxe5 {[%emt 0:00:58]} 12. Bxe5 {[%emt 0:00:16]} Qe7 {[%emt 0:00:25]} 13. Qb3 {[%emt 0:01:28]} Ng4 {[%emt 0:03:23]} 14. Bf4 {[%emt 0:02:49]} Rd8 {[%emt 0:01:15]} 15. Ne4 {[%emt 0:02:50]} Bb6 {[%emt 0:01:12]} 16. h3 {[%emt 0:01:51]} e5 {[%emt 0:01:44]} 17. Bg5 {[%emt 0:03:49]} Nf6 {[%emt 0:00:19]} 18. Qf3 {[%emt 0:01:56]} Rd4 {[%emt 0:02:06]} 19. Bxf6 {[%emt 0:08:44]} gxf6 {[%emt 0:00:09]} 20. Nxf6+ {[%emt 0:00:10]} Kg7 {[%emt 0:00:10]} 21. Nd5 {[%emt 0:00:48]} Qd6 {[%emt 0:00:23]} 22. e3 {[%emt 0:04:19]} e4 {[%emt 0:02:06]} 23. Qf4 {[%emt 0:04:38]} Rxd5 {[%emt 0:01:13]} 24. Qxd6 {[%emt 0:00:06]} Rxd6 {[%emt 0:00:09]} 25. Bxe4 {[%emt 0:00:04]} Bxh3 {[%emt 0:00:09]} 26. Rfd1 {[%emt 0:00:20]} Rad8 {[%emt 0:00:45]} 27. Rxd6 {[%emt 0:00:16]} Rxd6 {[%emt 0:00:16]} 28. Bxb7 {[%emt 0:00:12]} Rd2 {[%emt 0:00:08]} 29. b3 {[%emt 0:01:31]} Bd8 {[%emt 0:00:26]} 30. a4 {[%emt 0:03:21]} Be6 {[%emt 0:02:52]} 31. Rb1 {[%emt 0:00:37]} Bf6 {[%emt 0:00:18]} 32. b4 {[%emt 0:01:45]} Ra2 {[%emt 0:00:31]} 33. Bc6 {[%emt 0:03:26]} Bc3 {[%emt 0:01:43]} 34. a5 {[%emt 0:04:39]} Bf5 {[%emt 0:02:36]} 35. e4 {[%emt 0:05:45]} Be6 {[%emt 0:00:25]} 36. Bb7 {[%emt 0:04:42]} Ra4 {[%emt 0:00:44]} 37. Bd5 {[%emt 0:01:02]} Bxd5 {[%emt 0:01:50]} 38. exd5 {[%emt 0:00:11]} Bxb4 {[%emt 0:00:36]} 39. a6 {[%emt 0:01:25]} Bd6 {[%emt 0:01:20]} 40. Rb7 {[%emt 0:00:00]} Bc5 {[%emt 0:00:47]} 41. d6 {[%emt 0:03:31]} Rxa6 {[%emt 0:00:31]} 42. d7 {[%emt 0:02:02]} Rd6 {[%emt 0:00:15]} 0-1

[Event "20th Heraklion IT Open 2017"]
[Site "Heraklion"]
[Date "2017.04.18"]
[Round "2"]
[White "Vitsaxaki, Iris"]
[Black "Lampadariou, Nikolaos"]
[Result "0-1"]
[ECO "A48"]
[WhiteElo "1345"]
[BlackElo "1948"]
[Annotator "NA RC"]
[PlyCount "109"]
[EventDate "2017.??.??"]
[EventType "swiss"]
[EventCountry "GRE"]
[SourceTitle "playchess.com"]
[Source "ChessBase"]
[SourceQuality "1"]
[TimeControl "40/5400+30:1800+30"]

1. d4 {[%emt 0:00:00]} Nf6 {[%emt 0:17:23]} 2. Nf3 {[%emt 0:00:01]} g6 {[%emt 0:00:46]} 3. e3 {[%emt 0:01:52]} Bg7 {[%emt 0:00:36]} 4. Nbd2 {[%emt 0:00:28]} O-O {[%emt 0:00:26]} 5. Bd3 {[%emt 0:00:46]} d6 {[%emt 0:01:38]} 6. O-O {[%emt 0:00:27]} Nbd7 {[%emt 0:02:21]} 7. b3 {[%emt 0:00:52] A48: 1 d4 Nf6 2 Nf3 g6: Torre, London and Colle Systems} b6 {[%emt 0:06:05]} 8. Bb2 {[%emt 0:00:24]} Bb7 {[%emt 0:00:10]} 9. Re1 {[%emt 0:07:53]} c5 {[%emt 0:06:53]} 10. c4 {[%emt 0:05:44]} e6 {[%emt 0:07:16]} 11. Qc2 {[%emt 0:04:06]} Rc8 $146 {[%emt 0:04:01]} (11... Qc7 12. Rac1 a6 13. Bf1 Rfe8 14. Qb1 e5 15. d5 Bc8 16. e4 Nh5 17. g3 Ndf6 {1-0 (38) Alexikov,A (2315)-Polyakov,M (2405) Lutsk 2017}) 12. Ne4 {[%emt 0:03:20]} Nxe4 {[%emt 0:04:12]} 13. Bxe4 {[%emt 0:00:16]} d5 {[%emt 0:01:21]} 14. Bd3 {[%emt 0:00:50]} dxc4 {[%emt 0:02:19]} 15. bxc4 {[%emt 0:00:59]} cxd4 {[%emt 0:10:30]} 16. Nxd4 {[%emt 0:06:57]} Nc5 {[%emt 0:05:11]} 17. Be2 {[%emt 0:02:02]} Be4 {[%emt 0:02:59]} 18. Qd1 {[%emt 0:02:02]} Qg5 {[%emt 0:06:01]} 19. Bf3 {[%emt 0:07:10]} e5 {[%emt 0:03:02]} 20. Bxe4 {[%emt 0:02:00]} exd4 {[%emt 0:00:58]} 21. exd4 {[%emt 0:02:12]} Nxe4 {[%emt 0:00:19]} 22. Rxe4 {[%emt 0:00:12]} Rxc4 {[%emt 0:00:26]} 23. Qe2 {[%emt 0:00:45]} Qd5 {[%emt 0:01:16]} 24. Rd1 {[%emt 0:02:27]} b5 {[%emt 0:01:00]} 25. Rd3 {[%emt 0:18:14]} Rc2 {[%emt 0:02:25]} 26. Qxc2 {[%emt 0:06:25]} Qxe4 {[%emt 0:00:07]} 27. Qd1 {[%emt 0:00:23]} Qd5 {[%emt 0:01:56]} 28. Qb3 {[%emt 0:01:37]} Rd8 {[%emt 0:01:03]} 29. Qxd5 {[%emt 0:03:16]} Rxd5 {[%emt 0:00:09]} 30. Kf1 {[%emt 0:00:50]} a5 {[%emt 0:01:55]} 31. Ke2 {[%emt 0:02:38]} f5 {[%emt 0:02:10]} 32. a3 {[%emt 0:09:17]} Kf7 {[%emt 0:01:10]} 33. Bc3 {[%emt 0:01:28]} a4 {[%emt 0:00:32]} 34. Ke3 {[%emt 0:04:12]} Bf8 {[%emt 0:01:24]} 35. Bb4 {[%emt 0:00:42]} Bh6+ {[%emt 0:03:26]} (35... Bxb4 $17 36. axb4 Ke6) 36. Ke2 {[%emt 0:01:25]} Bg7 {[%emt 0:00:07]} 37. Bc5 {[%emt 0:01:08]} Bf6 {[%emt 0:00:18]} 38. Ke3 {[%emt 0:00:39]} Bg5+ {[%emt 0:01:15]} 39. Ke2 {[%emt 0:00:11]} Ke6 {[%emt 0:01:14]} 40. g3 {[%emt 0:00:00]} Rd7 {[%emt 0:01:12]} 41. f4 {[%emt 0:04:48]} Bd8 {[%emt 0:11:14]} 42. Re3+ {[%emt 0:04:55]} Kd5 {[%emt 0:00:55]} 43. Kd3 {[%emt 0:00:20]} Bc7 {[%emt 0:00:23]} 44. Re7 $2 {[%emt 0:05:14]} (44. Re8 $14 {keeps the upper hand.}) 44... Rxe7 {[%emt 0:02:07]} 45. Bxe7 {[%emt 0:00:09]} Bb6 {[%emt 0:03:12]} 46. Bf6 {[%emt 0:02:43]} h5 {[%emt 0:01:20]} ({And not} 46... b4 47. axb4 a3 48. Kc3 $11) 47. Bg7 {[%emt 0:01:58]} Bd8 {[%emt 0:01:40]} ({Weaker is} 47... b4 48. axb4 a3 49. Kc3 $11) 48. Bf8 {[%emt 0:07:43]} Bb6 {[%emt 0:00:21]} 49. Bc5 {[%emt 0:05:16]} Ba5 {[%emt 0:05:27]} 50. Ba7 $2 {[%emt 0:02:34]} (50. Be7 Be1 51. Bf6) 50... b4 {[%emt 0:01:31]} 51. Bc5 {[%emt 0:01:41]} b3 {[%emt 0:01:21]} 52. Ba7 {[%emt 0:01:17]} Be1 {[%emt 0:02:57]} 53. Bc5 {[%emt 0:01:02]} Bf2 {[%emt 0:00:32]} 54. Bb6 {[%emt 0:00:36]} Bg1 {[%emt 0:00:15]} 55. Bc7 {[%emt 0:01:04] Kxd4+} 0-1

[Event "20th Heraklion IT Open 2017"]
[Site "Heraklion"]
[Date "2017.04.18"]
[Round "3"]
[White "Moshovakis, Aggelos"]
[Black "Brokalakis - Gounaris, Christos"]
[Result "1-0"]
[ECO "C54"]
[WhiteElo "2030"]
[BlackElo "1773"]
[Annotator "NA RC"]
[PlyCount "83"]
[EventDate "2017.??.??"]
[EventType "swiss"]
[EventCountry "GRE"]
[SourceTitle "playchess.com"]
[Source "ChessBase"]
[SourceQuality "1"]
[TimeControl "40/5400+30:1800+30"]

{[%evp 8,55,25,20,13,-7,0,-27,-8,0,56,54,45,23,42,23,63,57,105,83,76,32767,75,76,152,132,158,144,32767,32767,212,203,204,166,173,104,485,482,482,495,516,511,522,532,683,476,688,599,626,539]} 1. e4 {[%emt 0:00:00]} e5 {[%emt 0:00:11]} 2. Nf3 {[%emt 0:00:00]} Nc6 {[%emt 0:00:23]} 3. Bc4 {[%emt 0:00:00]} Bc5 {[%emt 0:01:28]} 4. c3 {[%emt 0:00:13]} Nf6 {[%emt 0:05:14]} 5. d3 {[%emt 0:00:07]} O-O {[%emt 0:00:30]} 6. Bb3 {[%emt 0:00:29] C54: Giuoco Piano: 4 c3 Nf6, main lines with 5 d4 and 5 d3} (6. Bg5 d6 7. Nbd2 h6 8. Bh4 g5 9. Nxg5 hxg5 10. Bxg5 Kg7 11. Qf3 Be6 12. b4 Bb6 13. Bd5 a5 14. b5 Nb8 15. Bxb7 {½-½ (53) Carlsen,M (2840)-Karjakin,S (2785) Wijk aan Zee 2017}) 6... d5 7. Qe2 {[%emt 0:04:00] LiveBook: 97 Games} dxe4 {[%emt 0:04:29]} 8. dxe4 {[%emt 0:00:08]} Be6 {[%emt 0:07:36]} (8... Qe7 $11) 9. Bxe6 $146 {[%emt 0:02:55]} (9. Ba4 Bg4 10. h3 Bh5 11. Nbd2 Qe7 12. Nc4 a6 13. Ne3 Nxe4 {½-½ (37) Ianocichin,V (2139)-Gorbanovsky,O (2023) Kishinev 2012}) 9... fxe6 {[%emt 0:00:03]} 10. Qc4 {[%emt 0:00:33]} Qe7 {[%emt 0:01:45]} 11. b4 {[%emt 0:02:01]} Bb6 {[%emt 0:00:33]} 12. O-O {[%emt 0:03:45]} Rad8 {[%emt 0:05:23]} 13. a4 {[%emt 0:08:05]} a6 {[%emt 0:10:40]} 14. Bg5 {[%emt 0:02:10]} Qd6 {[%emt 0:11:19]} 15. Nbd2 {[%emt 0:01:30]} a5 {[%emt 0:02:43]} (15... h6 $14) 16. b5 {[%emt 0:01:24]} Ne7 {[%emt 0:00:09]} 17. Qb3 {[%emt 0:00:17]} h6 {[%emt 0:13:19]} 18. Nc4 {[%emt 0:02:31]} Qd7 {[%emt 0:06:12]} 19. Nfxe5 {[%emt 0:01:59]} Qc8 {[%emt 0:00:13]} 20. Nxb6 {[%emt 0:04:38]} cxb6 {[%emt 0:00:03]} 21. Be3 {[%emt 0:00:06]} ({Better is} 21. Bxf6 $18 gxf6 22. Nc4) 21... Qc7 $2 {[%emt 0:00:54]} (21... Nxe4 $16 {is more resistant.} 22. Bxb6 Rd5) 22. Qxe6+ {[%emt 0:00:22]} Kh7 {[%emt 0:00:31]} 23. Bxb6 {[%emt 0:00:33]} Qd6 {[%emt 0:02:14]} 24. Qxd6 {[%emt 0:00:06]} Rxd6 {[%emt 0:00:02]} 25. Bxa5 {[%emt 0:00:40]} Nxe4 {[%emt 0:00:22]} 26. f3 {[%emt 0:00:39]} Ng5 {[%emt 0:00:44]} 27. Bb4 {[%emt 0:01:11]} Re6 $18 {[%emt 0:00:21]} 28. Rfe1 {[%emt 0:01:09]} Rd8 {[%emt 0:00:54]} 29. c4 {[%emt 0:00:34]} Ng6 {[%emt 0:02:19]} 30. Nxg6 {[%emt 0:01:04]} Rxg6 {[%emt 0:00:01]} 31. Kf2 {[%emt 0:00:28]} Rd4 {[%emt 0:00:48]} 32. Rac1 {[%emt 0:00:33]} Ne6 {[%emt 0:00:36]} 33. g3 {[%emt 0:00:30]} Rd3 {[%emt 0:00:29]} 34. Re3 {[%emt 0:00:32]} Rd4 {[%emt 0:00:35]} 35. a5 {[%emt 0:00:14]} Ng5 {[%emt 0:01:10]} 36. Ra3 {[%emt 0:00:53]} Nh3+ {[%emt 0:00:49]} 37. Kf1 {[%emt 0:00:19]} Rf6 {[%emt 0:00:43]} 38. a6 {[%emt 0:00:12]} bxa6 {[%emt 0:00:14]} 39. bxa6 {[%emt 0:00:01]} Ng5 {[%emt 0:00:24]} 40. a7 {[%emt 0:00:00]} Nxf3 {[%emt 0:00:12]} 41. Rxf3 {[%emt 0:00:39]} Rxf3+ {[%emt 0:00:10]} 42. Kg2 {[%emt 0:00:07]} 1-0

[Event "20th Heraklion IT Open 2017"]
[Site "Heraklion"]
[Date "2017.04.18"]
[Round "3"]
[White "Sourgkounis, Angelos"]
[Black "Damia, Angelo"]
[Result "0-1"]
[ECO "A46"]
[WhiteElo "1960"]
[BlackElo "2417"]
[Annotator "RC"]
[PlyCount "70"]
[EventDate "2017.??.??"]
[EventType "swiss"]
[EventCountry "GRE"]
[SourceTitle "playchess.com"]
[Source "ChessBase"]
[SourceQuality "1"]
[TimeControl "40/5400+30:1800+30"]

1. d4 {[%emt 0:03:00]} Nf6 {[%emt 0:00:32]} 2. Nf3 {[%emt 0:00:11]} e6 {[%emt 0:00:31]} 3. e3 {[%emt 0:00:30]} b6 {[%emt 0:01:01]} 4. Bd3 {[%emt 0:00:10]} Bb7 {[%emt 0:00:05]} 5. Nbd2 {[%emt 0:01:09]} c5 {[%emt 0:02:03]} 6. O-O {[%emt 0:00:41]} Nc6 {[%emt 0:02:46]} 7. a3 {[%emt 0:02:01]} Qc7 {[%emt 0:00:22]} 8. Qe2 {[%emt 0:00:32]} Be7 {[%emt 0:04:52]} 9. c4 {[%emt 0:02:41]} g5 {[%emt 0:12:04]} 10. d5 {[%emt 0:16:55]} exd5 {[%emt 0:03:18]} 11. Nxg5 {[%emt 0:03:17]} dxc4 {[%emt 0:14:57]} 12. Bxc4 {[%emt 0:03:29]} Ne5 {[%emt 0:04:21]} 13. Ba2 {[%emt 0:15:59]} h6 {[%emt 0:04:09]} 14. Ngf3 {[%emt 0:06:13]} Rg8 {[%emt 0:03:57]} 15. e4 {[%emt 0:01:00]} O-O-O {[%emt 0:07:01]} 16. Nxe5 {[%emt 0:05:57]} Qxe5 {[%emt 0:00:07]} 17. Nc4 {[%emt 0:03:59]} Qxe4 {[%emt 0:12:09]} 18. Qxe4 {[%emt 0:00:23]} Nxe4 {[%emt 0:00:33]} 19. f3 {[%emt 0:00:49]} Ng5 {[%emt 0:01:12]} 20. Bxg5 {[%emt 0:01:57]} hxg5 {[%emt 0:05:14]} 21. Rfe1 {[%emt 0:04:01]} Rde8 {[%emt 0:12:30]} 22. Ne3 {[%emt 0:03:50]} Bf6 {[%emt 0:01:26]} 23. Bxf7 {[%emt 0:02:27]} Bxb2 {[%emt 0:00:05]} 24. Rab1 {[%emt 0:16:23]} Bc3 {[%emt 0:00:46]} 25. Bxg8 {[%emt 0:01:48]} Bxe1 {[%emt 0:00:52]} 26. Nf5 {[%emt 0:00:13]} Kc7 {[%emt 0:01:38]} 27. Bf7 {[%emt 0:01:26]} Re5 {[%emt 0:01:39]} 28. Bg6 {[%emt 0:01:29]} Bc3 {[%emt 0:00:55]} 29. h4 {[%emt 0:00:22]} gxh4 {[%emt 0:00:36]} 30. Nxh4 {[%emt 0:00:18]} d5 {[%emt 0:00:56]} 31. f4 {[%emt 0:00:18]} Re2 {[%emt 0:01:38]} 32. Bh5 {[%emt 0:00:58]} Re4 {[%emt 0:00:37]} 33. Rf1 {[%emt 0:00:46]} Ba6 {[%emt 0:00:22]} 34. Rf3 {[%emt 0:00:08]} Bd4+ {[%emt 0:00:18]} 35. Kh2 {[%emt 0:00:00]} Be2 {[%emt 0:00:02]} 0-1

[Event "20th Heraklion IT Open 2017"]
[Site "Heraklion"]
[Date "2017.04.18"]
[Round "3"]
[White "Dhruv Easwar"]
[Black "Friedel, Marcus"]
[Result "0-1"]
[ECO "B06"]
[WhiteElo "1753"]
[BlackElo "2182"]
[Annotator "ChessBase"]
[PlyCount "74"]
[EventDate "2017.??.??"]
[EventType "swiss"]
[EventCountry "GRE"]
[SourceTitle "playchess.com"]
[Source "ChessBase"]
[SourceQuality "1"]
[TimeControl "40/5400+30:1800+30"]

1. e4 {[%emt 0:00:00]} g6 {[%emt 0:00:08]} 2. d4 {[%emt 0:00:00]} Bg7 {[%emt 0:00:08]} 3. Nf3 {[%emt 0:00:19]} d6 {[%emt 0:00:32]} 4. Nc3 {[%emt 0:00:29]} c6 {[%emt 0:00:11]} 5. Bd3 {[%emt 0:01:20]} Bg4 {[%emt 0:03:33]} 6. Be3 {[%emt 0:00:27]} Qb6 {[%emt 0:01:59]} 7. O-O {[%emt 0:06:18]} Qxb2 {[%emt 0:06:34]} 8. Na4 {[%emt 0:00:31]} Qb4 {[%emt 0:02:23]} 9. c3 {[%emt 0:00:24]} Bxf3 {[%emt 0:04:24]} 10. gxf3 {[%emt 0:00:26]} Qa5 {[%emt 0:00:07]} 11. Qb3 {[%emt 0:01:42]} Qc7 {[%emt 0:08:37]} 12. Rab1 {[%emt 0:00:52]} b6 {[%emt 0:11:00]} 13. d5 {[%emt 0:01:18]} c5 {[%emt 0:00:35]} 14. Bb5+ {[%emt 0:00:27]} Nd7 {[%emt 0:00:16]} 15. Bc6 {[%emt 0:00:14]} Rd8 {[%emt 0:01:16]} 16. Qb5 {[%emt 0:01:47]} Ngf6 {[%emt 0:01:17]} 17. Bxd7+ {[%emt 0:02:36]} Qxd7 {[%emt 0:02:46]} 18. Qxd7+ {[%emt 0:01:30]} Nxd7 {[%emt 0:02:56]} 19. f4 {[%emt 0:00:47]} Rb8 {[%emt 0:01:21]} 20. Rb3 {[%emt 0:00:13]} Kd8 {[%emt 0:04:06]} 21. Rfb1 {[%emt 0:01:00]} Kc7 {[%emt 0:00:20]} 22. Nb2 {[%emt 0:00:47]} b5 {[%emt 0:02:36]} 23. Ra3 {[%emt 0:00:42]} Ra8 {[%emt 0:06:22]} 24. Nd3 {[%emt 0:00:51]} a6 {[%emt 0:01:12]} 25. e5 {[%emt 0:01:30]} Nb6 {[%emt 0:00:57]} 26. Rd1 {[%emt 0:01:17]} Nc4 {[%emt 0:01:10]} 27. Rb3 {[%emt 0:00:44]} Nxe3 {[%emt 0:00:09]} 28. fxe3 {[%emt 0:00:12]} c4 {[%emt 0:00:05]} 29. exd6+ {[%emt 0:01:16]} exd6 {[%emt 0:00:11]} 30. Ne5 {[%emt 0:01:13]} cxb3 {[%emt 0:00:37]} 31. Nxf7 {[%emt 0:00:11]} bxa2 {[%emt 0:02:01]} 32. Ra1 {[%emt 0:00:21]} Bxc3 {[%emt 0:01:42]} 33. Rxa2 {[%emt 0:00:09]} Rhe8 {[%emt 0:00:45]} 34. Kf2 {[%emt 0:00:10]} b4 {[%emt 0:02:18]} 35. Rc2 {[%emt 0:00:08]} a5 {[%emt 0:00:43]} 36. Ng5 {[%emt 0:00:09]} a4 {[%emt 0:00:33]} 37. Nxh7 {[%emt 0:00:10]} Rh8 {[%emt 0:00:27]} 0-1

[Event "20th Heraklion IT Open 2017"]
[Site "Heraklion"]
[Date "2017.04.18"]
[Round "3"]
[White "Vitsaxakis, Nikolaos"]
[Black "Kouvidis, Ioannis"]
[Result "1-0"]
[ECO "A48"]
[WhiteElo "1726"]
[BlackElo "1387"]
[Annotator "NA RC"]
[PlyCount "55"]
[EventDate "2017.??.??"]
[EventType "swiss"]
[EventCountry "GRE"]
[SourceTitle "playchess.com"]
[Source "ChessBase"]
[SourceQuality "1"]
[TimeControl "40/5400+30:1800+30"]

1. d4 {[%emt 0:00:46]} Nf6 {[%emt 0:00:07]} 2. Nf3 {[%emt 0:00:07]} g6 {[%emt 0:00:05]} 3. c4 {[%emt 0:00:19]} Bg7 {[%emt 0:00:08]} 4. Nc3 {[%emt 0:00:06]} O-O {[%emt 0:00:11]} 5. e4 {[%emt 0:00:04]} d6 {[%emt 0:00:06]} 6. h3 {[%emt 0:00:55]} e5 {[%emt 0:01:06]} 7. Be3 {[%emt 0:00:09]} Nc6 {[%emt 0:00:28]} 8. d5 {[%emt 0:00:35]} Ne7 {[%emt 0:00:06]} 9. b4 {[%emt 0:01:12]} Nd7 {[%emt 0:01:06]} 10. Nd2 {[%emt 0:01:10]} f5 {[%emt 0:00:12]} 11. f3 {[%emt 0:00:13]} fxe4 {[%emt 0:01:52]} 12. fxe4 {[%emt 0:00:28]} Bf6 {[%emt 0:02:00]} 13. Nf3 {[%emt 0:00:45]} a6 {[%emt 0:07:31]} 14. Be2 {[%emt 0:02:44]} Kh8 {[%emt 0:01:22]} 15. O-O {[%emt 0:00:38]} Ng8 {[%emt 0:01:44]} 16. Rc1 {[%emt 0:00:22]} h6 {[%emt 0:00:15]} 17. c5 {[%emt 0:00:26]} g5 {[%emt 0:00:33]} 18. cxd6 {[%emt 0:00:52]} cxd6 {[%emt 0:00:13]} 19. b5 {[%emt 0:00:27]} a5 {[%emt 0:00:53]} 20. Na4 {[%emt 0:01:17]} b6 {[%emt 0:00:08]} 21. Rc6 {[%emt 0:02:11]} Nc5 {[%emt 0:01:14]} 22. Nxb6 {[%emt 0:00:34]} Rb8 {[%emt 0:00:33]} 23. Nxc8 {[%emt 0:00:28]} Rxc8 {[%emt 0:00:07]} 24. Bxc5 dxc5 {[%emt 0:00:34]} 25. Nd2 {[%emt 0:01:39]} Be7 {[%emt 0:02:24]} 26. Nc4 {[%emt 0:00:21]} Rxf1+ {[%emt 0:00:37]} 27. Qxf1 {[%emt 0:00:06]} Nf6 {[%emt 0:01:05]} 28. Nxe5 {[%emt 0:00:06]} 1-0